[Event "*** Titled Tuesday 3|2 Blitz"]
[Site "Chess.com"]
[Date "2016.09.06"]
[Round "5"]
[White "chorejason"]
[Black "Lali-Rustavi"]
[Result "1-0"]
[WhiteElo "2031"]
[BlackElo "1821"]
[TimeControl "180+2"]
[EndTime "12:01:01 PDT"]
[Termination "chorejason won by resignation"]

1. e4 {[%clk 0:02:56]} 1... c5 {[%clk 0:02:59.9]} 2. Nf3 {[%clk 0:02:56.7]} 2...
Nc6 {[%clk 0:03:00.2]} 3. d4 {[%clk 0:02:58.3]} 3... cxd4 {[%clk 0:03:00.7]} 4.
Nxd4 {[%clk 0:03:00.2]} 4... Nf6 {[%clk 0:03:01.3]} 5. Nc3 {[%clk 0:03:01.4]}
5... e5 {[%clk 0:03:01.9]} 6. Ndb5 {[%clk 0:03:01.8]} 6... d6 {[%clk 0:03:03.2]}
7. Bg5 {[%clk 0:03:02.1]} 7... a6 {[%clk 0:03:04.3]} 8. Na3 {[%clk 0:03:03.8]}
8... b5 {[%clk 0:03:05.5]} 9. Bxf6 {[%clk 0:03:05.4]} 9... gxf6 {[%clk
0:02:59.6]} 10. Nd5 {[%clk 0:03:06.9]} 10... f5 {[%clk 0:02:46.8]} 11. Bd3
{[%clk 0:03:03.5]} 11... Bh6 {[%clk 0:02:39.4]} 12. exf5 {[%clk 0:02:59.4]}
12... Qg5 {[%clk 0:02:39.9]} 13. O-O {[%clk 0:02:51]} 13... O-O {[%clk
0:02:37.4]} 14. f4 {[%clk 0:02:48.4]} 14... exf4 {[%clk 0:02:19.9]} 15. Rxf4
{[%clk 0:02:48.3]} 15... Kh8 {[%clk 0:02:09.4]} 16. Rg4 {[%clk 0:02:34.1]} 16...
Qd8 {[%clk 0:02:07.2]} 17. Qf3 {[%clk 0:02:26.9]} 17... Ne5 {[%clk 0:02:07.6]}
18. Qh3 {[%clk 0:02:14.9]} 18... Nxg4 {[%clk 0:02:06.2]} 19. Qxg4 {[%clk
0:02:16.8]} 19... Bb7 {[%clk 0:02:04]} 20. f6 {[%clk 0:02:04.7]} 20... Bxd5
{[%clk 0:01:52.9]} 21. Qf5 {[%clk 0:02:05.9]} 21... Be3+ {[%clk 0:01:40.4]} 22.
Kf1 {[%clk 0:02:01.5]} 22... Bxg2+ {[%clk 0:01:33.6]} 23. Ke2 {[%clk 0:01:59.6]}
23... Bf3+ {[%clk 0:00:53.8]} 24. Kxf3 {[%clk 0:01:13.6]} 1-0

[Event "*** Titled Tuesday 3|2 Blitz"]
[Site "Chess.com"]
[Date "2016.09.06"]
[Round "5"]
[White "Sinquefield"]
[Black "Gordima"]
[Result "1-0"]
[WhiteElo "2092"]
[BlackElo "2494"]
[TimeControl "180+2"]
[EndTime "12:01:13 PDT"]
[Termination "Sinquefield won on time"]

1. e4 {[%clk 0:03:00]} 1... c5 {[%clk 0:03:00.6]} 2. Nf3 {[%clk 0:03:00.7]} 2...
d6 {[%clk 0:03:01.8]} 3. d4 {[%clk 0:03:01.7]} 3... cxd4 {[%clk 0:03:03.7]} 4.
Nxd4 {[%clk 0:03:03.6]} 4... Nf6 {[%clk 0:03:05.3]} 5. Nc3 {[%clk 0:03:05.1]}
5... a6 {[%clk 0:03:06.8]} 6. Bc4 {[%clk 0:03:06.3]} 6... e6 {[%clk 0:03:07.6]}
7. Bb3 {[%clk 0:03:07.9]} 7... Nbd7 {[%clk 0:03:08.8]} 8. f4 {[%clk 0:03:06.7]}
8... Nc5 {[%clk 0:03:08.8]} 9. Qf3 {[%clk 0:03:07.3]} 9... Be7 {[%clk
0:03:05.3]} 10. Be3 {[%clk 0:03:00.6]} 10... b5 {[%clk 0:03:00.6]} 11. g4 {[%clk
0:02:59.9]} 11... Bb7 {[%clk 0:03:00.1]} 12. g5 {[%clk 0:02:54.9]} 12... Nfxe4
{[%clk 0:03:00.4]} 13. Nxe4 {[%clk 0:02:20]} 13... Bxe4 {[%clk 0:03:00.3]} 14.
Qf1 {[%clk 0:02:18.6]} 14... O-O {[%clk 0:02:46.1]} 15. Rg1 {[%clk 0:02:14.9]}
15... Qa5+ {[%clk 0:02:40.7]} 16. Bd2 {[%clk 0:02:09.6]} 16... Qb6 {[%clk
0:02:40.8]} 17. f5 {[%clk 0:01:56.2]} 17... Nxb3 {[%clk 0:02:30.6]} 18. Nxb3
{[%clk 0:01:44.8]} 18... Bxf5 {[%clk 0:02:27.1]} 19. O-O-O {[%clk 0:01:44.7]}
19... a5 {[%clk 0:02:06.2]} 20. Bc3 {[%clk 0:01:42.6]} 20... b4 {[%clk
0:02:02.5]} 21. Bd4 {[%clk 0:01:42.6]} 21... Qc6 {[%clk 0:02:02.3]} 22. Rd2
{[%clk 0:01:38.2]} 22... a4 {[%clk 0:02:02.9]} 23. Na1 {[%clk 0:01:33.7]} 23...
b3 {[%clk 0:02:04.3]} 24. axb3 {[%clk 0:01:28.7]} 24... axb3 {[%clk 0:02:06.2]}
25. Nxb3 {[%clk 0:01:30.6]} 1-0

[Event "*** Titled Tuesday 3|2 Blitz"]
[Site "Chess.com"]
[Date "2016.09.06"]
[Round "5"]
[White "putinwarrior"]
[Black "Astaneh"]
[Result "0-1"]
[WhiteElo "2358"]
[BlackElo "2485"]
[TimeControl "180+2"]
[EndTime "12:01:41 PDT"]
[Termination "Astaneh won by resignation"]

1. e4 {[%clk 0:03:01.9]} 1... c6 {[%clk 0:03:00.9]} 2. d3 {[%clk 0:03:01]} 2...
d5 {[%clk 0:02:40.8]} 3. Nd2 {[%clk 0:02:59.2]} 3... e5 {[%clk 0:02:41.2]} 4.
Ngf3 {[%clk 0:03:00.1]} 4... Bd6 {[%clk 0:02:40.4]} 5. c3 {[%clk 0:03:01.2]}
5... Nf6 {[%clk 0:02:40.8]} 6. g3 {[%clk 0:03:02.8]} 6... O-O {[%clk 0:02:41.7]}
7. Bg2 {[%clk 0:03:04.5]} 7... Nbd7 {[%clk 0:02:42.4]} 8. O-O {[%clk 0:03:05.9]}
8... Nc5 {[%clk 0:02:42.9]} 9. Qc2 {[%clk 0:03:05.9]} 9... Bg4 {[%clk 0:02:38]}
10. h3 {[%clk 0:02:59.5]} 10... Bh5 {[%clk 0:02:38.5]} 11. Re1 {[%clk
0:02:42.2]} 11... Re8 {[%clk 0:02:36]} 12. b4 {[%clk 0:02:38.1]} 12... Ncd7
{[%clk 0:02:24.3]} 13. Bb2 {[%clk 0:02:33.4]} 13... a5 {[%clk 0:02:13]} 14. a3
{[%clk 0:02:30.3]} 14... axb4 {[%clk 0:02:08.9]} 15. axb4 {[%clk 0:02:27.1]}
15... Qb6 {[%clk 0:02:04.1]} 16. g4 {[%clk 0:02:14.9]} 16... Bg6 {[%clk
0:02:04.6]} 17. Nh4 {[%clk 0:02:16.4]} 17... Nf8 {[%clk 0:01:53.8]} 18. Nf1
{[%clk 0:02:15.6]} 18... Ne6 {[%clk 0:01:54.2]} 19. exd5 {[%clk 0:02:03.6]}
19... Nxd5 {[%clk 0:01:36.1]} 20. Nxg6 {[%clk 0:02:02.1]} 20... hxg6 {[%clk
0:01:36.8]} 21. Ne3 {[%clk 0:02:03]} 21... Nxe3 {[%clk 0:01:33.8]} 22. fxe3
{[%clk 0:02:00.7]} 22... Rxa1 {[%clk 0:01:19.9]} 23. Bxa1 {[%clk 0:01:59.4]}
23... Be7 {[%clk 0:01:17.2]} 24. Bb2 {[%clk 0:01:58.7]} 24... Bh4 {[%clk
0:01:17.7]} 25. Re2 {[%clk 0:01:57.4]} 25... Nf4 {[%clk 0:01:18.7]} 26. Kh1
{[%clk 0:01:44.7]} 26... Nxe2 {[%clk 0:01:16.6]} 27. Qxe2 {[%clk 0:01:46.6]}
27... Qa6 {[%clk 0:01:12.6]} 28. Be4 {[%clk 0:01:28.4]} 28... Qa2 {[%clk
0:01:07.4]} 29. Kg2 {[%clk 0:01:28.6]} 29... Qb1 {[%clk 0:00:53.5]} 30. Kf3
{[%clk 0:01:27.2]} 30... Re6 {[%clk 0:00:53.9]} 31. Kg2 {[%clk 0:01:22.8]} 31...
Re8 {[%clk 0:00:33.8]} 32. Kf3 {[%clk 0:01:15.8]} 32... Qh1+ {[%clk 0:00:21.7]}
33. Qg2 {[%clk 0:01:15.3]} 33... Qxg2+ {[%clk 0:00:23.6]} 34. Kxg2 {[%clk
0:01:16.6]} 34... Ra8 {[%clk 0:00:25.5]} 0-1

[Event "*** Titled Tuesday 3|2 Blitz"]
[Site "Chess.com"]
[Date "2016.09.06"]
[Round "5"]
[White "dusanacns"]
[Black "alturas_pacificas"]
[Result "1-0"]
[WhiteElo "2541"]
[BlackElo "2152"]
[TimeControl "180+2"]
[EndTime "12:01:43 PDT"]
[Termination "dusanacns won by resignation"]

1. e4 {[%clk 0:03:01.9]} 1... g6 {[%clk 0:02:55.3]} 2. d4 {[%clk 0:03:02.4]}
2... Bg7 {[%clk 0:02:56.6]} 3. Nc3 {[%clk 0:03:03.9]} 3... d6 {[%clk 0:02:56.9]}
4. f4 {[%clk 0:03:05.5]} 4... Nf6 {[%clk 0:02:56.3]} 5. Nf3 {[%clk 0:03:06.9]}
5... O-O {[%clk 0:02:53.4]} 6. e5 {[%clk 0:03:08.3]} 6... dxe5 {[%clk
0:02:51.8]} 7. fxe5 {[%clk 0:03:09.4]} 7... Nd5 {[%clk 0:02:49.3]} 8. Bc4 {[%clk
0:03:10.4]} 8... c6 {[%clk 0:02:49.4]} 9. O-O {[%clk 0:03:02.9]} 9... Bg4 {[%clk
0:02:27.1]} 10. Ne4 {[%clk 0:02:58.7]} 10... b5 {[%clk 0:02:24.6]} 11. Bb3
{[%clk 0:02:58.6]} 11... a5 {[%clk 0:02:15]} 12. a4 {[%clk 0:02:58.8]} 12... Na6
{[%clk 0:01:57.6]} 13. h3 {[%clk 0:02:56.3]} 13... Bxf3 {[%clk 0:01:57.1]} 14.
Qxf3 {[%clk 0:02:57.5]} 14... b4 {[%clk 0:01:36.8]} 15. Bg5 {[%clk 0:02:28.7]}
15... Qb6 {[%clk 0:01:34.9]} 16. Rad1 {[%clk 0:02:27.2]} 16... Rae8 {[%clk
0:01:31.6]} 17. Kh1 {[%clk 0:02:27.4]} 17... Nac7 {[%clk 0:01:22.5]} 18. Nc5
{[%clk 0:02:26.1]} 18... Ne6 {[%clk 0:01:05]} 19. Nxe6 {[%clk 0:02:17.6]} 19...
fxe6 {[%clk 0:01:05.3]} 20. Qg4 {[%clk 0:02:19.2]} 20... Rf5 {[%clk 0:01:01.4]}
21. Rxf5 {[%clk 0:02:19.6]} 21... exf5 {[%clk 0:00:59.7]} 22. Qe2 {[%clk
0:02:20.8]} 22... e6 {[%clk 0:00:59.3]} 23. Qc4 {[%clk 0:02:17]} 23... Rc8
{[%clk 0:00:57.6]} 24. Qe2 {[%clk 0:02:16.5]} 24... h6 {[%clk 0:00:49.9]} 25.
Bc1 {[%clk 0:02:15.3]} 25... Rd8 {[%clk 0:00:47.8]} 26. h4 {[%clk 0:02:15.2]}
26... Kh7 {[%clk 0:00:39.1]} 27. Qf3 {[%clk 0:02:16.1]} 27... Nc7 {[%clk
0:00:35.8]} 28. Be3 {[%clk 0:02:16]} 28... Nd5 {[%clk 0:00:36]} 29. Bf2 {[%clk
0:02:17.4]} 29... Qb7 {[%clk 0:00:32.7]} 30. Rd3 {[%clk 0:02:17.3]} 30... Qe7
{[%clk 0:00:34]} 31. Kg1 {[%clk 0:02:11.4]} 31... Qc7 {[%clk 0:00:32]} 32. Bc4
{[%clk 0:02:11.1]} 32... Qe7 {[%clk 0:00:33.1]} 33. Qd1 {[%clk 0:02:07.8]} 33...
Qc7 {[%clk 0:00:33]} 34. Rg3 {[%clk 0:02:08.4]} 34... Qf7 {[%clk 0:00:33.3]} 35.
Qe2 {[%clk 0:02:08.3]} 35... Qe7 {[%clk 0:00:34.1]} 36. Bb3 {[%clk 0:02:05]}
36... Qxh4 {[%clk 0:00:34.7]} 37. Rxg6 {[%clk 0:02:02.2]} 37... Qf4 {[%clk
0:00:35.5]} 38. Rxe6 {[%clk 0:01:59.9]} 38... Qc1+ {[%clk 0:00:34.5]} 39. Qf1
{[%clk 0:02:01.3]} 39... Qxb2 {[%clk 0:00:34.6]} 40. Rxc6 {[%clk 0:01:59.5]}
40... f4 {[%clk 0:00:23.9]} 41. Qd3+ {[%clk 0:01:56.9]} 41... Kh8 {[%clk
0:00:24.4]} 42. Bxd5 {[%clk 0:01:58.4]} 42... Qc1+ {[%clk 0:00:23.3]} 43. Kh2
{[%clk 0:01:59.5]} 43... Rxd5 {[%clk 0:00:23]} 44. Rc8+ {[%clk 0:02:00.4]} 44...
Bf8 {[%clk 0:00:24.4]} 45. Rxf8+ {[%clk 0:02:01.3]} 45... Kg7 {[%clk 0:00:26.1]}
46. Qf5 {[%clk 0:02:02.1]} 1-0

[Event "*** Titled Tuesday 3|2 Blitz"]
[Site "Chess.com"]
[Date "2016.09.06"]
[Round "5"]
[White "popov_m"]
[Black "Blitzstream"]
[Result "0-1"]
[WhiteElo "2157"]
[BlackElo "2542"]
[TimeControl "180+2"]
[EndTime "12:01:56 PDT"]
[Termination "Blitzstream won by resignation"]

1. Nf3 {[%clk 0:03:01.9]} 1... Nf6 {[%clk 0:03:00.6]} 2. c4 {[%clk 0:03:02.6]}
2... c6 {[%clk 0:03:01.7]} 3. d4 {[%clk 0:03:00.9]} 3... d5 {[%clk 0:03:03.1]}
4. Nc3 {[%clk 0:03:02.3]} 4... e6 {[%clk 0:03:04.1]} 5. Bg5 {[%clk 0:02:55.8]}
5... dxc4 {[%clk 0:03:04.7]} 6. a4 {[%clk 0:02:47.7]} 6... Bb4 {[%clk
0:03:01.6]} 7. Qc2 {[%clk 0:02:38.2]} 7... Nbd7 {[%clk 0:02:36.7]} 8. e4 {[%clk
0:02:37.1]} 8... Qa5 {[%clk 0:02:36.2]} 9. Bxc4 {[%clk 0:02:18.3]} 9... Bxc3+
{[%clk 0:02:17]} 10. bxc3 {[%clk 0:02:16.1]} 10... Nxe4 {[%clk 0:02:18]} 11.
Qxe4 {[%clk 0:01:25]} 11... Qxc3+ {[%clk 0:02:18.5]} 12. Nd2 {[%clk 0:01:26.2]}
12... Qxa1+ {[%clk 0:02:14.4]} 13. Ke2 {[%clk 0:01:22.6]} 13... Qxh1 {[%clk
0:02:11.6]} 14. Nf1 {[%clk 0:01:24]} 14... Nf6 {[%clk 0:01:33.4]} 15. Qf3 {[%clk
0:01:13.9]} 15... Bd7 {[%clk 0:01:25.7]} 16. h3 {[%clk 0:00:51.7]} 16... O-O-O
{[%clk 0:01:05.3]} 17. Bf4 {[%clk 0:00:43.5]} 17... Nd5 {[%clk 0:01:02.5]} 18.
Bg3 {[%clk 0:00:41.5]} 18... Rhe8 {[%clk 0:00:56.4]} 19. Kd2 {[%clk 0:00:26.9]}
19... e5 {[%clk 0:00:56.4]} 20. Bd3 {[%clk 0:00:07.8]} 20... e4 {[%clk
0:00:46.2]} 21. Bxe4 {[%clk 0:00:04.8]} 21... Qxf1 {[%clk 0:00:46.7]} 22. Bxd5
{[%clk 0:00:06.3]} 22... Qe1+ {[%clk 0:00:45.1]} 23. Kd3 {[%clk 0:00:06.8]}
23... Qb1+ {[%clk 0:00:37]} 24. Kc3 {[%clk 0:00:07.4]} 24... Qc1+ {[%clk
0:00:37.9]} 25. Kb3 {[%clk 0:00:07.3]} 25... cxd5 {[%clk 0:00:38]} 26. Qf4
{[%clk 0:00:08.8]} 26... Qxf4 {[%clk 0:00:36.3]} 0-1

[Event "*** Titled Tuesday 3|2 Blitz"]
[Site "Chess.com"]
[Date "2016.09.06"]
[Round "5"]
[White "maciek_92"]
[Black "dretch"]
[Result "1-0"]
[WhiteElo "2536"]
[BlackElo "2616"]
[TimeControl "180+2"]
[EndTime "12:02:06 PDT"]
[Termination "maciek_92 won by checkmate"]

1. c4 {[%clk 0:03:01.9]} 1... c5 {[%clk 0:03:00.7]} 2. Nf3 {[%clk 0:03:02.7]}
2... Nc6 {[%clk 0:03:02.2]} 3. d4 {[%clk 0:03:03.4]} 3... cxd4 {[%clk
0:02:59.9]} 4. Nxd4 {[%clk 0:03:05.3]} 4... Qb6 {[%clk 0:03:00.8]} 5. Nb3 {[%clk
0:02:50.9]} 5... Nf6 {[%clk 0:02:58.1]} 6. Nc3 {[%clk 0:02:51.9]} 6... g6 {[%clk
0:02:50.1]} 7. e4 {[%clk 0:02:47.6]} 7... Bg7 {[%clk 0:02:49.5]} 8. Be2 {[%clk
0:02:49.1]} 8... O-O {[%clk 0:02:49.7]} 9. O-O {[%clk 0:02:50.4]} 9... Ne8
{[%clk 0:02:48.9]} 10. Be3 {[%clk 0:02:49.6]} 10... Qd8 {[%clk 0:02:49.1]} 11.
Rc1 {[%clk 0:02:44.6]} 11... Nd6 {[%clk 0:02:43.8]} 12. Nd4 {[%clk 0:02:40]}
12... f5 {[%clk 0:02:36.9]} 13. exf5 {[%clk 0:02:34.9]} 13... gxf5 {[%clk
0:02:36.4]} 14. f4 {[%clk 0:02:28.7]} 14... b6 {[%clk 0:02:31.6]} 15. Bf3 {[%clk
0:02:11.5]} 15... Bb7 {[%clk 0:02:06.2]} 16. Nxc6 {[%clk 0:02:09.2]} 16... Bxc6
{[%clk 0:02:03.8]} 17. Bd4 {[%clk 0:02:06.6]} 17... Rf7 {[%clk 0:01:50]} 18. b3
{[%clk 0:01:43.7]} 18... Qf8 {[%clk 0:01:43.9]} 19. Be5 {[%clk 0:01:30.2]} 19...
Ne4 {[%clk 0:01:33.7]} 20. Nxe4 {[%clk 0:01:24.8]} 20... fxe4 {[%clk 0:01:31.4]}
21. Bh5 {[%clk 0:01:22.8]} 21... Rf5 {[%clk 0:01:32.1]} 22. Bg4 {[%clk 0:01:06]}
22... Bxe5 {[%clk 0:01:31.7]} 23. Bxf5 {[%clk 0:01:05.3]} 23... Qxf5 {[%clk
0:01:32.4]} 24. fxe5 {[%clk 0:01:06.7]} 24... Qxe5 {[%clk 0:01:34]} 25. Qg4+
{[%clk 0:01:02.7]} 25... Kh8 {[%clk 0:01:33.2]} 26. Rf7 {[%clk 0:00:43.8]} 26...
Qb2 {[%clk 0:00:18.1]} 27. Rcf1 {[%clk 0:00:23.4]} 27... Rg8 {[%clk 0:00:18.2]}
28. Rxh7+ {[%clk 0:00:22.7]} 28... Kxh7 {[%clk 0:00:16.9]} 29. Qh5+ {[%clk
0:00:24.6]} 29... Kg7 {[%clk 0:00:18.1]} 30. Rf7# {[%clk 0:00:26.3]} 1-0

[Event "*** Titled Tuesday 3|2 Blitz"]
[Site "Chess.com"]
[Date "2016.09.06"]
[Round "5"]
[White "nonscitis"]
[Black "pKiLz5Rn9b"]
[Result "0-1"]
[WhiteElo "2345"]
[BlackElo "2455"]
[TimeControl "180+2"]
[EndTime "12:02:06 PDT"]
[Termination "pKiLz5Rn9b won by resignation"]

1. e4 {[%clk 0:03:02]} 1... e6 {[%clk 0:03:01]} 2. d4 {[%clk 0:03:02.2]} 2... d5
{[%clk 0:03:02]} 3. Nd2 {[%clk 0:03:02.7]} 3... dxe4 {[%clk 0:03:03.4]} 4. Nxe4
{[%clk 0:03:03.8]} 4... Nd7 {[%clk 0:03:04.9]} 5. Nf3 {[%clk 0:03:02.7]} 5...
Ngf6 {[%clk 0:03:06.2]} 6. Bd3 {[%clk 0:03:02.7]} 6... Nxe4 {[%clk 0:03:04.3]}
7. Bxe4 {[%clk 0:03:03.1]} 7... Nf6 {[%clk 0:03:05.6]} 8. Bg5 {[%clk 0:03:02.3]}
8... h6 {[%clk 0:02:59.9]} 9. Bxf6 {[%clk 0:03:03.1]} 9... Qxf6 {[%clk
0:03:00.7]} 10. O-O {[%clk 0:03:00.4]} 10... Bd6 {[%clk 0:03:01.7]} 11. Qe2
{[%clk 0:02:51.9]} 11... g5 {[%clk 0:02:57.6]} 12. Ne5 {[%clk 0:02:48.8]} 12...
Ke7 {[%clk 0:02:28.5]} 13. Nc4 {[%clk 0:02:35.1]} 13... Qxd4 {[%clk 0:02:25.4]}
14. Rad1 {[%clk 0:02:30.6]} 14... Qf6 {[%clk 0:02:22.4]} 15. Nxd6 {[%clk
0:02:14.9]} 15... cxd6 {[%clk 0:02:23.7]} 16. Qd2 {[%clk 0:02:16]} 16... Rd8
{[%clk 0:02:23.8]} 17. f4 {[%clk 0:02:07.3]} 17... g4 {[%clk 0:02:24.9]} 18. Qe2
{[%clk 0:01:27.8]} 18... h5 {[%clk 0:02:24.3]} 19. c4 {[%clk 0:01:15.2]} 19...
Bd7 {[%clk 0:02:14.7]} 20. c5 {[%clk 0:01:13.5]} 20... dxc5 {[%clk 0:02:11.9]}
21. Qc4 {[%clk 0:00:59.8]} 21... Rac8 {[%clk 0:02:06.2]} 22. Bxb7 {[%clk
0:00:58.3]} 22... Rc7 {[%clk 0:02:07.6]} 23. Be4 {[%clk 0:00:44.9]} 23... Rb8
{[%clk 0:02:08.5]} 24. Rxd7+ {[%clk 0:00:35.8]} 24... Kxd7 {[%clk 0:02:00]} 25.
Rd1+ {[%clk 0:00:30.8]} 25... Ke8 {[%clk 0:02:01.4]} 26. b3 {[%clk 0:00:25]}
26... Kf8 {[%clk 0:02:00.3]} 27. Bb1 {[%clk 0:00:24.3]} 27... Rd8 {[%clk
0:02:00.1]} 28. Rf1 {[%clk 0:00:23.5]} 28... Qd4+ {[%clk 0:02:00.8]} 29. Qxd4
{[%clk 0:00:22.4]} 29... cxd4 {[%clk 0:02:02.2]} 30. Bd3 {[%clk 0:00:23.1]}
30... Rc3 {[%clk 0:02:03.3]} 31. Bc4 {[%clk 0:00:24.1]} 31... d3 {[%clk
0:02:04.5]} 32. Rd1 {[%clk 0:00:23.8]} 32... d2 {[%clk 0:02:04.4]} 33. Kf2
{[%clk 0:00:25.2]} 33... Rc2 {[%clk 0:02:05.9]} 34. a4 {[%clk 0:00:25.5]} 34...
h4 {[%clk 0:02:05]} 35. g3 {[%clk 0:00:24.6]} 35... hxg3+ {[%clk 0:02:05.7]} 36.
hxg3 {[%clk 0:00:26.5]} 36... Kg7 {[%clk 0:02:07.3]} 37. Ke3 {[%clk 0:00:26.5]}
37... Rc3+ {[%clk 0:02:08.3]} 38. Kf2 {[%clk 0:00:26.7]} 38... Rf3+ {[%clk
0:02:09.4]} 39. Kg2 {[%clk 0:00:26.8]} 39... Kf6 {[%clk 0:02:09.4]} 40. b4
{[%clk 0:00:26.7]} 40... Re3 {[%clk 0:02:08.1]} 41. Kf2 {[%clk 0:00:27]} 41...
Re4 {[%clk 0:02:09.5]} 42. Be2 {[%clk 0:00:25.4]} 42... Rxb4 {[%clk 0:02:10.6]}
43. Bxg4 {[%clk 0:00:26.6]} 43... Rxa4 {[%clk 0:02:12]} 44. Be2 {[%clk
0:00:27.2]} 44... Rb4 {[%clk 0:02:13]} 45. Ke3 {[%clk 0:00:26.7]} 45... a5
{[%clk 0:02:14.3]} 46. g4 {[%clk 0:00:24.9]} 46... a4 {[%clk 0:02:14.5]} 47. g5+
{[%clk 0:00:25.1]} 47... Ke7 {[%clk 0:02:16.1]} 48. Bd3 {[%clk 0:00:23.3]} 48...
a3 {[%clk 0:02:16]} 49. Rxd2 {[%clk 0:00:24.3]} 49... Rb3 {[%clk 0:02:17.6]} 0-1

[Event "*** Titled Tuesday 3|2 Blitz"]
[Site "Chess.com"]
[Date "2016.09.06"]
[Round "5"]
[White "GianmarcoVaR"]
[Black "MattyDPerrine"]
[Result "1-0"]
[WhiteElo "2395"]
[BlackElo "2200"]
[TimeControl "180+2"]
[EndTime "12:02:51 PDT"]
[Termination "GianmarcoVaR won by resignation"]

1. d4 {[%clk 0:03:01.9]} 1... Nf6 {[%clk 0:02:22.4]} 2. c4 {[%clk 0:03:00.2]}
2... c5 {[%clk 0:02:19.7]} 3. d5 {[%clk 0:03:01.1]} 3... b5 {[%clk 0:02:13.8]}
4. cxb5 {[%clk 0:03:03]} 4... a6 {[%clk 0:02:14.6]} 5. bxa6 {[%clk 0:03:04.9]}
5... g6 {[%clk 0:02:16]} 6. Nc3 {[%clk 0:03:06.2]} 6... Bxa6 {[%clk 0:02:17.6]}
7. Nf3 {[%clk 0:03:07.5]} 7... d6 {[%clk 0:02:19.1]} 8. g3 {[%clk 0:03:07.5]}
8... Bg7 {[%clk 0:02:19.9]} 9. Bg2 {[%clk 0:03:09.1]} 9... O-O {[%clk
0:02:19.7]} 10. O-O {[%clk 0:03:10.7]} 10... Nbd7 {[%clk 0:02:21.4]} 11. Qc2
{[%clk 0:03:04.2]} 11... Qa5 {[%clk 0:02:19.5]} 12. Rd1 {[%clk 0:02:06]} 12...
Nb6 {[%clk 0:02:11.5]} 13. Rb1 {[%clk 0:02:06.6]} 13... Nc4 {[%clk 0:02:11.2]}
14. Nd2 {[%clk 0:02:04.3]} 14... Nd7 {[%clk 0:02:07.2]} 15. Nxc4 {[%clk
0:02:04.8]} 15... Bxc4 {[%clk 0:02:09.1]} 16. Bd2 {[%clk 0:02:04.5]} 16... Bxc3
{[%clk 0:02:02.4]} 17. Bxc3 {[%clk 0:01:28]} 17... Qxa2 {[%clk 0:02:01.8]} 18.
Qd2 {[%clk 0:01:29.3]} 18... Nb6 {[%clk 0:01:40.4]} 19. h4 {[%clk 0:01:17.9]}
19... Na4 {[%clk 0:01:33]} 20. Ra1 {[%clk 0:01:03.6]} 20... Qb3 {[%clk
0:01:33.3]} 21. Ra3 {[%clk 0:00:51.5]} 21... Qb5 {[%clk 0:01:33.3]} 22. Rda1
{[%clk 0:00:49.6]} 22... Bb3 {[%clk 0:00:49.2]} 23. h5 {[%clk 0:00:45.8]} 23...
Rab8 {[%clk 0:00:42.3]} 24. Rxa4 {[%clk 0:00:41.2]} 24... Bxa4 {[%clk
0:00:44.2]} 25. Qh6 {[%clk 0:00:40.3]} 25... f6 {[%clk 0:00:30.5]} 26. hxg6
{[%clk 0:00:41.1]} 26... Rf7 {[%clk 0:00:18]} 27. gxf7+ {[%clk 0:00:40.7]} 27...
Kxf7 {[%clk 0:00:19.9]} 28. Bh3 {[%clk 0:00:31]} 28... Ke8 {[%clk 0:00:16.6]}
29. Qg7 {[%clk 0:00:17]} 29... Kd8 {[%clk 0:00:14.1]} 30. Qf8+ {[%clk
0:00:15.1]} 30... Qe8 {[%clk 0:00:15.7]} 31. Qxe8+ {[%clk 0:00:15.9]} 31... Bxe8
{[%clk 0:00:17.6]} 32. Ra7 {[%clk 0:00:16]} 32... Bg6 {[%clk 0:00:10.1]} 33. Bd7
{[%clk 0:00:14.9]} 33... Be4 {[%clk 0:00:05.7]} 34. Ba5+ {[%clk 0:00:15.7]} 1-0

[Event "*** Titled Tuesday 3|2 Blitz"]
[Site "Chess.com"]
[Date "2016.09.06"]
[Round "5"]
[White "pedromartinez91"]
[Black "RamonManon0g"]
[Result "1-0"]
[WhiteElo "2384"]
[BlackElo "2198"]
[TimeControl "180+2"]
[EndTime "12:03:08 PDT"]
[Termination "pedromartinez91 won on time"]

1. e4 {[%clk 0:03:01.9]} 1... c5 {[%clk 0:02:58.4]} 2. Nf3 {[%clk 0:03:01.4]}
2... d6 {[%clk 0:02:59.4]} 3. d4 {[%clk 0:02:59.4]} 3... cxd4 {[%clk 0:03:01.3]}
4. Nxd4 {[%clk 0:02:59.5]} 4... Nf6 {[%clk 0:03:02.6]} 5. Nc3 {[%clk 0:02:58.4]}
5... a6 {[%clk 0:03:04.1]} 6. f3 {[%clk 0:02:57.7]} 6... e5 {[%clk 0:03:02.7]}
7. Nb3 {[%clk 0:02:57.7]} 7... Be7 {[%clk 0:03:04]} 8. Be3 {[%clk 0:02:58]} 8...
Be6 {[%clk 0:03:05.9]} 9. Qd2 {[%clk 0:02:57.5]} 9... Nbd7 {[%clk 0:03:07.8]}
10. O-O-O {[%clk 0:02:58.4]} 10... O-O {[%clk 0:03:05.6]} 11. g4 {[%clk
0:02:59.9]} 11... b5 {[%clk 0:03:06.5]} 12. h4 {[%clk 0:02:59.3]} 12... b4
{[%clk 0:03:05.1]} 13. Na4 {[%clk 0:02:47.6]} 13... a5 {[%clk 0:02:55.2]} 14. g5
{[%clk 0:02:45.8]} 14... Nh5 {[%clk 0:02:53.7]} 15. Bb5 {[%clk 0:02:42.9]} 15...
Rc8 {[%clk 0:02:41.8]} 16. Bxd7 {[%clk 0:02:41.9]} 16... Bxd7 {[%clk 0:02:41.8]}
17. Nb6 {[%clk 0:02:42]} 17... Rc6 {[%clk 0:02:41.2]} 18. Nxd7 {[%clk
0:02:31.5]} 18... Qxd7 {[%clk 0:02:43.1]} 19. Kb1 {[%clk 0:02:24.5]} 19... a4
{[%clk 0:02:35.7]} 20. Nc1 {[%clk 0:01:44.5]} 20... Rfc8 {[%clk 0:02:33]} 21.
Qxb4 {[%clk 0:01:36.7]} 21... Rxc2 {[%clk 0:02:31.2]} 22. Rd2 {[%clk 0:01:36.1]}
22... Qc6 {[%clk 0:02:06.2]} 23. Rxc2 {[%clk 0:01:27]} 23... Qxc2+ {[%clk
0:02:08.1]} 24. Ka1 {[%clk 0:01:27.7]} 24... Kf8 {[%clk 0:01:38.1]} 25. Qd2
{[%clk 0:01:23]} 25... Qxd2 {[%clk 0:00:45.6]} 26. Bxd2 {[%clk 0:01:22]} 26...
Rc2 {[%clk 0:00:47.5]} 27. Rd1 {[%clk 0:01:21.3]} 27... f6 {[%clk 0:00:42.8]}
28. Kb1 {[%clk 0:01:17.9]} 28... Rc4 {[%clk 0:00:41.7]} 29. Nd3 {[%clk
0:01:14.4]} 29... fxg5 {[%clk 0:00:42.1]} 30. hxg5 {[%clk 0:01:13.8]} 30... Ng3
{[%clk 0:00:36.5]} 31. b3 {[%clk 0:00:59.6]} 31... axb3 {[%clk 0:00:33.4]} 32.
axb3 {[%clk 0:01:00.2]} 32... Rd4 {[%clk 0:00:20.5]} 33. Be3 {[%clk 0:00:48.6]}
33... Ne2 {[%clk 0:00:17.7]} 34. Bxd4 {[%clk 0:00:36.2]} 34... exd4 {[%clk
0:00:15.7]} 35. Rh1 {[%clk 0:00:31.2]} 35... Bxg5 {[%clk 0:00:11.8]} 36. Rxh7
{[%clk 0:00:30.3]} 36... Nc3+ {[%clk 0:00:09.6]} 37. Kc2 {[%clk 0:00:29]} 37...
Kf7 {[%clk 0:00:09.4]} 38. Rh8 {[%clk 0:00:24.4]} 38... Ne2 {[%clk 0:00:09.3]}
39. b4 {[%clk 0:00:23.6]} 1-0